[Event "*** Titled Tuesday Blitz"]
[Site "Chess.com"]
[Date "2019.10.01"]
[Round "8"]
[White "FMJoseHerrera"]
[Black "Dhaydon19"]
[Result "0-1"]
[WhiteElo "2529"]
[BlackElo "2688"]
[TimeControl "180+2"]
[EndTime "14:58:09 PDT"]
[Termination "Dhaydon19 won on time"]

1. Nf3 {[%clk 0:03:01.9]} 1... e6 {[%clk 0:03:01.2]} 2. g3 {[%clk 0:03:02.6]}
2... d5 {[%clk 0:03:03.1]} 3. Bg2 {[%clk 0:03:02.8]} 3... Nf6 {[%clk 0:03:05]}
4. O-O {[%clk 0:03:03.1]} 4... b6 {[%clk 0:03:06.9]} 5. b3 {[%clk 0:03:03.8]}
5... Bb7 {[%clk 0:03:08.6]} 6. Bb2 {[%clk 0:03:05.3]} 6... Nbd7 {[%clk
0:03:10.2]} 7. d3 {[%clk 0:03:06.8]} 7... Bd6 {[%clk 0:03:12]} 8. Nbd2 {[%clk
0:03:08.3]} 8... O-O {[%clk 0:03:13.6]} 9. Re1 {[%clk 0:03:09.2]} 9... c5 {[%clk
0:03:13.7]} 10. e4 {[%clk 0:03:09.4]} 10... dxe4 {[%clk 0:03:14.3]} 11. dxe4
{[%clk 0:03:10.2]} 11... Be7 {[%clk 0:03:14.2]} 12. Qe2 {[%clk 0:03:10.3]} 12...
Qc7 {[%clk 0:03:14.4]} 13. Rad1 {[%clk 0:03:10.4]} 13... a6 {[%clk 0:03:14.5]}
14. e5 {[%clk 0:02:56.8]} 14... Nd5 {[%clk 0:03:14.9]} 15. c4 {[%clk 0:02:57.9]}
15... Nb4 {[%clk 0:03:13.3]} 16. a3 {[%clk 0:02:59.2]} 16... Nc6 {[%clk
0:03:13.8]} 17. Ne4 {[%clk 0:03:00.5]} 17... Ncxe5 {[%clk 0:03:10.9]} 18. Nxe5
{[%clk 0:02:56.2]} 18... Nxe5 {[%clk 0:03:12.8]} 19. Nxc5 {[%clk 0:02:04.5]}
19... Bxg2 {[%clk 0:03:07.6]} 20. Qxe5 {[%clk 0:01:31.1]} 20... Qxe5 {[%clk
0:03:02.9]} 21. Bxe5 {[%clk 0:01:33]} 21... Bf3 {[%clk 0:02:42.7]} 22. Rd3
{[%clk 0:01:28.6]} 22... Bxc5 {[%clk 0:02:42.4]} 23. Rxf3 {[%clk 0:01:29.6]}
23... Bxa3 {[%clk 0:02:42.5]} 24. Re4 {[%clk 0:01:22.5]} 24... f6 {[%clk
0:02:40.7]} 25. Bd4 {[%clk 0:01:19.8]} 25... e5 {[%clk 0:02:32.7]} 26. Bxb6
{[%clk 0:01:20.3]} 26... Rab8 {[%clk 0:02:29.7]} 27. c5 {[%clk 0:01:21.1]} 27...
Bb2 {[%clk 0:02:25.4]} 28. Ra4 {[%clk 0:01:17.8]} 28... Ra8 {[%clk 0:02:25]} 29.
Rd3 {[%clk 0:01:02.8]} 29... Bd4 {[%clk 0:02:20]} 30. Rc4 {[%clk 0:01:01.1]}
30... a5 {[%clk 0:02:18.3]} 31. Ra4 {[%clk 0:00:57.3]} 31... Rfc8 {[%clk
0:02:14.9]} 32. Raxd4 {[%clk 0:00:45.3]} 32... exd4 {[%clk 0:02:15.4]} 33. Rxd4
{[%clk 0:00:47.2]} 33... Ra6 {[%clk 0:02:07.4]} 34. Kf1 {[%clk 0:00:44.3]} 34...
Rca8 {[%clk 0:02:04.8]} 35. Rc4 {[%clk 0:00:43.4]} 35... a4 {[%clk 0:02:04.1]}
36. b4 {[%clk 0:00:28.2]} 36... a3 {[%clk 0:02:04.1]} 37. Rc1 {[%clk 0:00:29.6]}
37... a2 {[%clk 0:02:05.3]} 38. Ra1 {[%clk 0:00:31.5]} 38... Ra3 {[%clk
0:02:04.4]} 39. c6 {[%clk 0:00:29.7]} 39... Rb3 {[%clk 0:02:03.8]} 40. Ke2
{[%clk 0:00:21.7]} 40... Rxb4 {[%clk 0:02:03]} 41. Bc5 {[%clk 0:00:21.2]} 41...
Rc4 {[%clk 0:02:03.2]} 42. Be3 {[%clk 0:00:12.5]} 42... Rxc6 {[%clk 0:02:03.9]}
43. h4 {[%clk 0:00:14.4]} 43... Rca6 {[%clk 0:02:02]} 44. h5 {[%clk 0:00:14]}
44... Rb8 {[%clk 0:02:02.7]} 45. h6 {[%clk 0:00:15.1]} 45... g5 {[%clk
0:02:03.5]} 46. Bd4 {[%clk 0:00:15.9]} 46... Rb1 {[%clk 0:02:03.1]} 47. Kf3
{[%clk 0:00:15.9]} 47... Rxa1 {[%clk 0:02:04.4]} 48. Bxa1 {[%clk 0:00:17.8]}
48... Kf7 {[%clk 0:02:06.3]} 49. Kg4 {[%clk 0:00:17.8]} 49... Kg6 {[%clk
0:02:07.4]} 50. Bxf6 {[%clk 0:00:02.3]} 50... Rxf6 {[%clk 0:02:07.3]} 0-1

[Event "*** Titled Tuesday Blitz"]
[Site "Chess.com"]
[Date "2019.10.01"]
[Round "8"]
[White "IvanRadivojevic"]
[Black "RitvarsReimanis"]
[Result "1-0"]
[WhiteElo "2495"]
[BlackElo "2573"]
[TimeControl "180+2"]
[EndTime "14:58:10 PDT"]
[Termination "IvanRadivojevic won on time"]

1. e4 {[%clk 0:02:15.5]} 1... c5 {[%clk 0:02:59.9]} 2. Nc3 {[%clk 0:02:16.2]}
2... Nc6 {[%clk 0:03:01.2]} 3. f4 {[%clk 0:02:17.4]} 3... g6 {[%clk 0:03:01.4]}
4. Nf3 {[%clk 0:02:19]} 4... Bg7 {[%clk 0:03:02.6]} 5. Bb5 {[%clk 0:02:20.6]}
5... Nd4 {[%clk 0:03:03]} 6. O-O {[%clk 0:02:22.2]} 6... Nh6 {[%clk 0:03:01.5]}
7. Nxd4 {[%clk 0:02:13.3]} 7... cxd4 {[%clk 0:02:45.6]} 8. Ne2 {[%clk
0:02:11.7]} 8... O-O {[%clk 0:02:46.9]} 9. Bd3 {[%clk 0:02:03.9]} 9... d6 {[%clk
0:02:41]} 10. b3 {[%clk 0:02:04.1]} 10... f5 {[%clk 0:02:37.8]} 11. Bb2 {[%clk
0:02:02.3]} 11... Qb6 {[%clk 0:02:27.6]} 12. Kh1 {[%clk 0:01:52.3]} 12... e5
{[%clk 0:02:05.9]} 13. fxe5 {[%clk 0:01:49.1]} 13... dxe5 {[%clk 0:02:05.6]} 14.
c3 {[%clk 0:01:49.4]} 14... Be6 {[%clk 0:01:40.7]} 15. cxd4 {[%clk 0:01:45.6]}
15... exd4 {[%clk 0:01:41.6]} 16. Nf4 {[%clk 0:01:40.8]} 16... Kh8 {[%clk
0:01:22.5]} 17. Nxe6 {[%clk 0:01:32.4]} 17... Qxe6 {[%clk 0:01:23.1]} 18. exf5
{[%clk 0:01:33.1]} 18... Nxf5 {[%clk 0:01:23]} 19. Qg4 {[%clk 0:01:17.5]} 19...
Rae8 {[%clk 0:01:12.9]} 20. h3 {[%clk 0:00:58.6]} 20... Be5 {[%clk 0:00:41.2]}
21. Bxf5 {[%clk 0:00:57.3]} 21... gxf5 {[%clk 0:00:36.3]} 22. Qf3 {[%clk
0:00:50.4]} 22... Rf7 {[%clk 0:00:33.3]} 23. Qd3 {[%clk 0:00:50.6]} 23... Qd5
{[%clk 0:00:30]} 24. Rxf5 {[%clk 0:00:48.8]} 24... Rg8 {[%clk 0:00:20.4]} 25.
Rg1 {[%clk 0:00:32.9]} 25... Rxf5 {[%clk 0:00:18.1]} 26. Qxf5 {[%clk 0:00:34.8]}
26... Qd6 {[%clk 0:00:19.4]} 27. Qe4 {[%clk 0:00:31.7]} 27... Bg7 {[%clk
0:00:19.6]} 28. Rf1 {[%clk 0:00:30.6]} 28... b6 {[%clk 0:00:19.8]} 29. Rf7
{[%clk 0:00:30.8]} 29... Qg6 {[%clk 0:00:20.6]} 30. Qxg6 {[%clk 0:00:28.9]}
30... hxg6 {[%clk 0:00:22.5]} 31. Rd7 {[%clk 0:00:29]} 31... Rc8 {[%clk
0:00:21.1]} 32. Bxd4 {[%clk 0:00:29.6]} 32... Bxd4 {[%clk 0:00:22.3]} 33. Rxd4
{[%clk 0:00:31.5]} 33... Rc2 {[%clk 0:00:22.3]} 34. a4 {[%clk 0:00:32.2]} 34...
Rb2 {[%clk 0:00:22.8]} 35. Rd3 {[%clk 0:00:33.6]} 35... Kg7 {[%clk 0:00:23.2]}
36. Kh2 {[%clk 0:00:35]} 36... Kf6 {[%clk 0:00:24.3]} 37. Kg3 {[%clk 0:00:36.5]}
1-0

[Event "*** Titled Tuesday Blitz"]
[Site "Chess.com"]
[Date "2019.10.01"]
[Round "8"]
[White "kosmeg"]
[Black "AliKa2810"]
[Result "1-0"]
[WhiteElo "2504"]
[BlackElo "2585"]
[TimeControl "180+2"]
[EndTime "14:58:22 PDT"]
[Termination "kosmeg won by checkmate"]

1. d4 {[%clk 0:03:01.9]} 1... Nf6 {[%clk 0:02:59.3]} 2. c4 {[%clk 0:03:02.8]}
2... g6 {[%clk 0:03:00.7]} 3. Nc3 {[%clk 0:03:03.6]} 3... Bg7 {[%clk 0:03:02.3]}
4. e4 {[%clk 0:03:04.4]} 4... d6 {[%clk 0:03:03.9]} 5. Be2 {[%clk 0:03:05.8]}
5... O-O {[%clk 0:03:05.2]} 6. Bg5 {[%clk 0:03:07.3]} 6... Na6 {[%clk 0:03:00]}
7. Qd2 {[%clk 0:03:07.2]} 7... e5 {[%clk 0:03:00.5]} 8. d5 {[%clk 0:03:08.2]}
8... Nc5 {[%clk 0:03:00.8]} 9. f3 {[%clk 0:03:09.4]} 9... h6 {[%clk 0:02:59.3]}
10. Be3 {[%clk 0:03:09.3]} 10... a5 {[%clk 0:02:58.2]} 11. g4 {[%clk 0:03:09.3]}
11... h5 {[%clk 0:02:58]} 12. h3 {[%clk 0:03:02.3]} 12... Nh7 {[%clk 0:02:56.4]}
13. O-O-O {[%clk 0:02:58.9]} 13... h4 {[%clk 0:02:56.1]} 14. Kb1 {[%clk
0:02:53.8]} 14... f5 {[%clk 0:02:54.4]} 15. gxf5 {[%clk 0:02:30.4]} 15... gxf5
{[%clk 0:02:54.7]} 16. Bxc5 {[%clk 0:02:21.5]} 16... dxc5 {[%clk 0:02:54.9]} 17.
exf5 {[%clk 0:02:22.1]} 17... Bxf5+ {[%clk 0:02:55.4]} 18. Bd3 {[%clk
0:02:23.3]} 18... e4 {[%clk 0:02:51.8]} 19. Bxe4 {[%clk 0:02:16.2]} 19... Ng5
{[%clk 0:02:39.5]} 20. Bxf5 {[%clk 0:02:00.6]} 20... Rxf5 {[%clk 0:02:40.1]} 21.
f4 {[%clk 0:02:01]} 21... Nf7 {[%clk 0:02:41.3]} 22. Nf3 {[%clk 0:01:54.6]}
22... a4 {[%clk 0:02:42.4]} 23. Rhg1 {[%clk 0:01:45.2]} 23... Qf6 {[%clk
0:02:43.5]} 24. Ne4 {[%clk 0:01:41.8]} 24... Qh6 {[%clk 0:02:32.8]} 25. Nfg5
{[%clk 0:01:37.3]} 25... Kh8 {[%clk 0:02:18.7]} 26. Nxf7+ {[%clk 0:01:12.3]}
26... Rxf7 {[%clk 0:02:18.3]} 27. Ng5 {[%clk 0:01:14.2]} 27... Re7 {[%clk
0:01:50.2]} 28. Ne6 {[%clk 0:01:13]} 28... Bf6 {[%clk 0:01:51.2]} 29. f5 {[%clk
0:01:10.5]} 29... Qh5 {[%clk 0:01:40.7]} 30. Qf4 {[%clk 0:00:59.1]} 30... a3
{[%clk 0:01:38]} 31. Rde1 {[%clk 0:00:45.2]} 31... Rh7 {[%clk 0:01:12.2]} 32.
Rg6 {[%clk 0:00:44.1]} 32... Bxb2 {[%clk 0:00:45.8]} 33. Ng5 {[%clk 0:00:43.3]}
33... Re7 {[%clk 0:00:40.9]} 34. Nf7+ {[%clk 0:00:34.9]} 34... Rxf7 {[%clk
0:00:41.5]} 35. Rh6+ {[%clk 0:00:36.1]} 35... Qxh6 {[%clk 0:00:43.1]} 36. Qxh6+
{[%clk 0:00:37.5]} 36... Rh7 {[%clk 0:00:44.4]} 37. Qg6 {[%clk 0:00:36.4]} 37...
Rg8 {[%clk 0:00:40.4]} 38. Re8 {[%clk 0:00:34.9]} 38... Rg7 {[%clk 0:00:41.9]}
39. Qh5+ {[%clk 0:00:26.9]} 39... Rh7 {[%clk 0:00:34.2]} 40. Rxg8+ {[%clk
0:00:27.8]} 40... Kxg8 {[%clk 0:00:35.5]} 41. Qe8+ {[%clk 0:00:29.5]} 41... Kg7
{[%clk 0:00:36]} 42. Qg6+ {[%clk 0:00:31]} 42... Kh8 {[%clk 0:00:36.2]} 43. f6
{[%clk 0:00:32.5]} 43... b6 {[%clk 0:00:24]} 44. Qe8# {[%clk 0:00:32.4]} 1-0

[Event "*** Titled Tuesday Blitz"]
[Site "Chess.com"]
[Date "2019.10.01"]
[Round "8"]
[White "Sashadav97"]
[Black "francyIM"]
[Result "0-1"]
[WhiteElo "2521"]
[BlackElo "2662"]
[TimeControl "180+2"]
[EndTime "14:58:28 PDT"]
[Termination "francyIM won by checkmate"]

1. d4 {[%clk 0:02:04.4]} 1... c6 {[%clk 0:03:01.9]} 2. c4 {[%clk 0:02:00.1]}
2... Nf6 {[%clk 0:03:02.4]} 3. Nc3 {[%clk 0:02:00.4]} 3... d5 {[%clk 0:03:03.8]}
4. cxd5 {[%clk 0:02:02.3]} 4... cxd5 {[%clk 0:03:04.6]} 5. Bf4 {[%clk
0:02:03.8]} 5... Nc6 {[%clk 0:03:05.4]} 6. e3 {[%clk 0:02:05.1]} 6... a6 {[%clk
0:03:06.6]} 7. Be2 {[%clk 0:02:04.9]} 7... Bf5 {[%clk 0:03:07.4]} 8. Nf3 {[%clk
0:02:01.5]} 8... e6 {[%clk 0:03:07.7]} 9. O-O {[%clk 0:02:02.2]} 9... Bd6 {[%clk
0:03:08.1]} 10. Qb3 {[%clk 0:02:02.9]} 10... O-O {[%clk 0:03:07]} 11. Bxd6
{[%clk 0:01:51.8]} 11... Qxd6 {[%clk 0:03:08.9]} 12. Rac1 {[%clk 0:01:51.1]}
12... b5 {[%clk 0:03:03.7]} 13. a3 {[%clk 0:01:49.3]} 13... Nd7 {[%clk
0:03:03.2]} 14. Qd1 {[%clk 0:01:45.8]} 14... Rfb8 {[%clk 0:03:01.2]} 15. Bd3
{[%clk 0:01:44.7]} 15... Bg6 {[%clk 0:03:01.5]} 16. Bxg6 {[%clk 0:01:44.5]}
16... hxg6 {[%clk 0:03:03.4]} 17. Ne2 {[%clk 0:01:43.4]} 17... b4 {[%clk
0:03:03]} 18. a4 {[%clk 0:01:39.1]} 18... b3 {[%clk 0:03:03.7]} 19. Nc3 {[%clk
0:01:37.4]} 19... Na5 {[%clk 0:03:03.6]} 20. e4 {[%clk 0:01:36.6]} 20... dxe4
{[%clk 0:03:04.1]} 21. Nxe4 {[%clk 0:01:37.6]} 21... Qd5 {[%clk 0:03:00.4]} 22.
Re1 {[%clk 0:01:20.5]} 22... Nc4 {[%clk 0:03:00.2]} 23. Qe2 {[%clk 0:01:11.6]}
23... Nd6 {[%clk 0:03:00.5]} 24. Nxd6 {[%clk 0:01:10.2]} 24... Qxd6 {[%clk
0:03:02.4]} 25. Ne5 {[%clk 0:01:09.9]} 25... Nf6 {[%clk 0:02:47.5]} 26. Red1
{[%clk 0:01:04.5]} 26... Rb4 {[%clk 0:02:45.5]} 27. Rc6 {[%clk 0:01:03.1]} 27...
Qd5 {[%clk 0:02:38.6]} 28. h3 {[%clk 0:00:45.1]} 28... Rxd4 {[%clk 0:02:31.8]}
29. Rdc1 {[%clk 0:00:42]} 29... Re4 {[%clk 0:02:25.4]} 30. Rc8+ {[%clk
0:00:39.2]} 30... Kh7 {[%clk 0:02:23.9]} 31. Rxa8 {[%clk 0:00:30.3]} 31... Qxa8
{[%clk 0:02:24.2]} 32. Qd3 {[%clk 0:00:18.3]} 32... Rxe5 {[%clk 0:02:23.8]} 33.
Qxb3 {[%clk 0:00:19.4]} 33... Rg5 {[%clk 0:02:20.8]} 34. f3 {[%clk 0:00:18.1]}
34... Qd5 {[%clk 0:02:20.1]} 35. Qxd5 {[%clk 0:00:18.7]} 35... Rxd5 {[%clk
0:02:20.5]} 36. Rc6 {[%clk 0:00:20.1]} 36... a5 {[%clk 0:02:20.2]} 37. Rb6
{[%clk 0:00:20.2]} 37... Nd7 {[%clk 0:02:17.2]} 38. Rb7 {[%clk 0:00:19]} 38...
g5 {[%clk 0:02:18.4]} 39. b4 {[%clk 0:00:20.5]} 39... axb4 {[%clk 0:02:18.9]}
40. Rxb4 {[%clk 0:00:22.4]} 40... Ra5 {[%clk 0:02:19.4]} 41. Rb7 {[%clk
0:00:22.9]} 41... Ne5 {[%clk 0:02:19.2]} 42. Rb4 {[%clk 0:00:22.2]} 42... Kg6
{[%clk 0:02:19.5]} 43. h4 {[%clk 0:00:23]} 43... gxh4 {[%clk 0:02:19.9]} 44.
Rxh4 {[%clk 0:00:24.9]} 44... f5 {[%clk 0:02:20.5]} 45. Rb4 {[%clk 0:00:25.2]}
45... Kf6 {[%clk 0:02:21.4]} 46. Rd4 {[%clk 0:00:24.6]} 46... Nc6 {[%clk
0:02:21]} 47. Rc4 {[%clk 0:00:25.5]} 47... Ne7 {[%clk 0:02:21.2]} 48. Kf2 {[%clk
0:00:26.7]} 48... Nd5 {[%clk 0:02:22.2]} 49. g4 {[%clk 0:00:26.7]} 49... Nb6
{[%clk 0:02:22.5]} 50. Rc6 {[%clk 0:00:27.4]} 50... Nxa4 {[%clk 0:02:23.3]} 51.
gxf5 {[%clk 0:00:29]} 51... Rxf5 {[%clk 0:02:22.3]} 52. Kg3 {[%clk 0:00:30.2]}
52... Nc5 {[%clk 0:02:23]} 53. f4 {[%clk 0:00:28.1]} 53... Nd3 {[%clk
0:02:23.1]} 54. Rd6 {[%clk 0:00:25.8]} 54... Nxf4 {[%clk 0:02:23.7]} 55. Kg4
{[%clk 0:00:27.1]} 55... Ng6 {[%clk 0:02:23.6]} 56. Ra6 {[%clk 0:00:24.3]} 56...
Rc5 {[%clk 0:02:24]} 57. Ra1 {[%clk 0:00:19.1]} 57... Rc4+ {[%clk 0:02:24.7]}
58. Kg3 {[%clk 0:00:20.7]} 58... Ne7 {[%clk 0:02:25.8]} 59. Kh3 {[%clk 0:00:21]}
59... Nf5 {[%clk 0:02:27.7]} 60. Ra8 {[%clk 0:00:20.3]} 60... g5 {[%clk
0:02:28.7]} 61. Rf8+ {[%clk 0:00:19.2]} 61... Ke5 {[%clk 0:02:29.7]} 62. Rg8
{[%clk 0:00:20.2]} 62... g4+ {[%clk 0:02:30.4]} 63. Kh2 {[%clk 0:00:20]} 63...
Kf4 {[%clk 0:02:31.3]} 64. Rb8 {[%clk 0:00:18.5]} 64... Rc2+ {[%clk 0:02:30.7]}
65. Kg1 {[%clk 0:00:19.6]} 65... Nh4 {[%clk 0:02:32]} 66. Rf8+ {[%clk
0:00:19.7]} 66... Kg3 {[%clk 0:02:32.2]} 67. Kf1 {[%clk 0:00:21.1]} 67... Nf3
{[%clk 0:02:30.1]} 68. Rg8 {[%clk 0:00:19.9]} 68... Rf2# {[%clk 0:02:30.1]} 0-1

[Event "*** Titled Tuesday Blitz"]
[Site "Chess.com"]
[Date "2019.10.01"]
[Round "8"]
[White "newauto"]
[Black "nitpicker"]
[Result "1/2-1/2"]
[WhiteElo "2008"]
[BlackElo "2256"]
[TimeControl "180+2"]
[EndTime "14:58:29 PDT"]
[Termination "Game drawn by repetition"]

1. e4 {[%clk 0:03:01.9]} 1... d5 {[%clk 0:03:00.2]} 2. exd5 {[%clk 0:03:01.9]}
2... Qxd5 {[%clk 0:03:01.2]} 3. Nc3 {[%clk 0:03:00]} 3... Qd8 {[%clk 0:03:01.8]}
4. d4 {[%clk 0:03:00.1]} 4... Nf6 {[%clk 0:03:01.9]} 5. Bc4 {[%clk 0:02:54.2]}
5... c6 {[%clk 0:02:53.5]} 6. Nf3 {[%clk 0:02:54]} 6... Bf5 {[%clk 0:02:53.5]}
7. O-O {[%clk 0:02:45.4]} 7... e6 {[%clk 0:02:48.9]} 8. Re1 {[%clk 0:02:34]}
8... Bb4 {[%clk 0:02:30.5]} 9. Bg5 {[%clk 0:02:31.9]} 9... Nbd7 {[%clk
0:02:27.4]} 10. Ne5 {[%clk 0:02:31.7]} 10... Nxe5 {[%clk 0:02:20.5]} 11. dxe5
{[%clk 0:02:31.2]} 11... Qxd1 {[%clk 0:02:17.2]} 12. Raxd1 {[%clk 0:02:29.3]}
12... Nd5 {[%clk 0:02:10.2]} 13. Nxd5 {[%clk 0:01:40.3]} 13... exd5 {[%clk
0:02:11]} 14. c3 {[%clk 0:01:35.9]} 14... Be7 {[%clk 0:02:05.2]} 15. Bxe7 {[%clk
0:01:23]} 15... Kxe7 {[%clk 0:02:06.4]} 16. Bd3 {[%clk 0:01:18.7]} 16... Ke6
{[%clk 0:01:58.4]} 17. h3 {[%clk 0:01:15.3]} 17... Rhe8 {[%clk 0:01:53.5]} 18.
f4 {[%clk 0:01:09.3]} 18... h5 {[%clk 0:01:46.5]} 19. Be2 {[%clk 0:01:06.8]}
19... g6 {[%clk 0:01:39.1]} 20. g4 {[%clk 0:01:05.8]} 20... hxg4 {[%clk
0:01:40.3]} 21. hxg4 {[%clk 0:01:06.3]} 21... Be4 {[%clk 0:01:41.8]} 22. Bd3
{[%clk 0:00:57.8]} 22... Bf3 {[%clk 0:01:38.3]} 23. Be2 {[%clk 0:00:58.4]} 23...
Bxe2 {[%clk 0:01:34.9]} 24. Rxe2 {[%clk 0:00:58.1]} 24... Rh8 {[%clk 0:01:32.1]}
25. Rf1 {[%clk 0:00:45]} 25... Rh4 {[%clk 0:01:20.6]} 26. f5+ {[%clk 0:00:41.7]}
26... Ke7 {[%clk 0:01:22]} 27. Rg2 {[%clk 0:00:18.2]} 27... gxf5 {[%clk
0:01:10.3]} 28. gxf5 {[%clk 0:00:18.5]} 28... Re4 {[%clk 0:01:11.1]} 29. e6
{[%clk 0:00:16.1]} 29... fxe6 {[%clk 0:00:50.1]} 30. f6+ {[%clk 0:00:16.6]}
30... Kf7 {[%clk 0:00:35.7]} 31. Rg7+ {[%clk 0:00:16.3]} 31... Kf8 {[%clk
0:00:36.1]} 32. Rh7 {[%clk 0:00:13.7]} 32... Kg8 {[%clk 0:00:32.7]} 33. Rg7+
{[%clk 0:00:13.7]} 33... Kf8 {[%clk 0:00:32]} 34. Rxb7 {[%clk 0:00:13.6]} 34...
Rg4+ {[%clk 0:00:26.8]} 35. Kh2 {[%clk 0:00:11.8]} 35... e5 {[%clk 0:00:26.9]}
36. Kh3 {[%clk 0:00:12.2]} 36... Re4 {[%clk 0:00:21.7]} 37. Rh7 {[%clk
0:00:12.2]} 37... Kg8 {[%clk 0:00:21.8]} 38. Rg7+ {[%clk 0:00:12.9]} 38... Kf8
{[%clk 0:00:22.6]} 39. Rh1 {[%clk 0:00:12.4]} 39... Rf4 {[%clk 0:00:21.5]} 40.
Rh7 {[%clk 0:00:13.1]} 40... Kg8 {[%clk 0:00:20.3]} 41. Rg7+ {[%clk 0:00:13.1]}
41... Kf8 {[%clk 0:00:20.3]} 42. Rh7 {[%clk 0:00:13.4]} 42... Kg8 {[%clk
0:00:21.5]} 43. Rg7+ {[%clk 0:00:14.1]} 43... Kf8 {[%clk 0:00:22.5]} 1/2-1/2

[Event "*** Titled Tuesday Blitz"]
[Site "Chess.com"]
[Date "2019.10.01"]
[Round "8"]
[White "HrvojeZagreb"]
[Black "aranibos"]
[Result "1-0"]
[WhiteElo "2085"]
[BlackElo "2145"]
[TimeControl "180+2"]
[EndTime "14:58:30 PDT"]
[Termination "HrvojeZagreb won on time"]

1. d4 {[%clk 0:02:45.7]} 1... Nf6 {[%clk 0:02:58.1]} 2. Bf4 {[%clk 0:02:45.7]}
2... d6 {[%clk 0:02:58.2]} 3. Nc3 {[%clk 0:02:45.2]} 3... g6 {[%clk 0:02:57.5]}
4. e4 {[%clk 0:02:46.1]} 4... Bg7 {[%clk 0:02:58.3]} 5. Qd2 {[%clk 0:02:47.5]}
5... h6 {[%clk 0:02:55.4]} 6. O-O-O {[%clk 0:02:46.9]} 6... g5 {[%clk
0:02:56.5]} 7. Be3 {[%clk 0:02:48.1]} 7... Ng4 {[%clk 0:02:56]} 8. f3 {[%clk
0:02:49.6]} 8... Nxe3 {[%clk 0:02:56.6]} 9. Qxe3 {[%clk 0:02:51.5]} 9... a6
{[%clk 0:02:57.2]} 10. h4 {[%clk 0:02:48.9]} 10... e6 {[%clk 0:02:54]} 11. e5
{[%clk 0:02:42.3]} 11... gxh4 {[%clk 0:02:48.7]} 12. Nge2 {[%clk 0:02:31.9]}
12... Nc6 {[%clk 0:02:44.6]} 13. Nf4 {[%clk 0:02:32.2]} 13... Qg5 {[%clk
0:02:23.8]} 14. exd6 {[%clk 0:02:26.1]} 14... Nxd4 {[%clk 0:02:10.7]} 15. Rxd4
{[%clk 0:02:16.2]} 15... Bxd4 {[%clk 0:02:08.7]} 16. Qxd4 {[%clk 0:02:16.7]}
16... e5 {[%clk 0:02:09.6]} 17. Qa4+ {[%clk 0:02:03.1]} 17... Bd7 {[%clk
0:02:08.8]} 18. Bb5 {[%clk 0:02:01.7]} 18... Qxf4+ {[%clk 0:02:06.2]} 19. Qxf4
{[%clk 0:02:01.9]} 19... exf4 {[%clk 0:02:07.1]} 20. Bxd7+ {[%clk 0:02:02.4]}
20... Kxd7 {[%clk 0:02:08]} 21. dxc7 {[%clk 0:02:03.5]} 21... Kxc7 {[%clk
0:02:08.2]} 22. Nd5+ {[%clk 0:02:04.3]} 22... Kc6 {[%clk 0:02:05.1]} 23. Nxf4
{[%clk 0:02:06.2]} 23... Rae8 {[%clk 0:02:01.6]} 24. Rxh4 {[%clk 0:02:05.2]}
24... Re1+ {[%clk 0:01:53]} 25. Kd2 {[%clk 0:02:05.8]} 25... Ra1 {[%clk
0:01:48.9]} 26. a3 {[%clk 0:02:04.5]} 26... Rd8+ {[%clk 0:01:49.3]} 27. Kc3
{[%clk 0:02:04.9]} 27... Rd6 {[%clk 0:01:49]} 28. Nd3 {[%clk 0:02:04]} 28... Rg1
{[%clk 0:01:46.6]} 29. Rg4 {[%clk 0:01:59.2]} 29... f5 {[%clk 0:01:42.9]} 30.
Rg7 {[%clk 0:01:57.2]} 30... Kb6 {[%clk 0:01:35]} 31. b4 {[%clk 0:01:52.9]}
31... h5 {[%clk 0:01:24.9]} 32. Nc5 {[%clk 0:01:52.1]} 32... h4 {[%clk
0:01:18.4]} 33. Rxb7+ {[%clk 0:01:36.5]} 33... Kc6 {[%clk 0:01:15.5]} 34. Rh7
{[%clk 0:01:36.8]} 34... Rxg2 {[%clk 0:01:12.9]} 35. Rxh4 {[%clk 0:01:33.6]}
35... Rdd2 {[%clk 0:01:13.5]} 36. Rf4 {[%clk 0:01:27.3]} 36... Rxc2+ {[%clk
0:01:12.3]} 37. Kb3 {[%clk 0:01:27.9]} 37... Kb5 {[%clk 0:00:57.5]} 38. a4+
{[%clk 0:01:23.3]} 38... Kc6 {[%clk 0:00:57.3]} 39. Nxa6 {[%clk 0:01:12]} 39...
Rb2+ {[%clk 0:00:57.1]} 40. Kc3 {[%clk 0:01:13]} 40... Rgc2+ {[%clk 0:00:56.7]}
41. Kd4 {[%clk 0:01:13.4]} 41... Kb6 {[%clk 0:00:49.3]} 42. b5 {[%clk
0:01:10.6]} 42... Rd2+ {[%clk 0:00:35.2]} 43. Ke5 {[%clk 0:01:10.7]} 43... Re2+
{[%clk 0:00:33]} 44. Kxf5 {[%clk 0:01:11.5]} 44... Rbd2 {[%clk 0:00:32.7]} 45.
Re4 {[%clk 0:01:08.1]} 45... Rd5+ {[%clk 0:00:22.9]} 46. Ke6 {[%clk 0:00:59.1]}
1-0

[Event "*** Titled Tuesday Blitz"]
[Site "Chess.com"]
[Date "2019.10.01"]
[Round "8"]
[White "Bathory44"]
[Black "champ2005"]
[Result "0-1"]
[WhiteElo "2618"]
[BlackElo "2816"]
[TimeControl "180+2"]
[EndTime "14:58:38 PDT"]
[Termination "champ2005 won by resignation"]

1. e4 {[%clk 0:03:01.9]} 1... Nf6 {[%clk 0:02:59]} 2. e5 {[%clk 0:03:00.1]} 2...
Nd5 {[%clk 0:03:00.3]} 3. d4 {[%clk 0:03:01.3]} 3... d6 {[%clk 0:03:01.5]} 4.
Nf3 {[%clk 0:03:02.9]} 4... dxe5 {[%clk 0:03:01.3]} 5. Nxe5 {[%clk 0:03:03.4]}
5... g6 {[%clk 0:03:02]} 6. Nd2 {[%clk 0:03:02.2]} 6... Bg7 {[%clk 0:03:01]} 7.
Ndf3 {[%clk 0:03:03.1]} 7... O-O {[%clk 0:03:01.8]} 8. Be2 {[%clk 0:03:04]} 8...
Nd7 {[%clk 0:02:56.7]} 9. O-O {[%clk 0:02:59.2]} 9... Nxe5 {[%clk 0:02:51.8]}
10. Nxe5 {[%clk 0:03:01.1]} 10... c5 {[%clk 0:02:50.2]} 11. Bf3 {[%clk
0:02:40.7]} 11... Be6 {[%clk 0:02:31.4]} 12. Re1 {[%clk 0:02:38]} 12... Qc7
{[%clk 0:02:14]} 13. Bxd5 {[%clk 0:02:33]} 13... Bxd5 {[%clk 0:02:13]} 14. Bf4
{[%clk 0:02:34.2]} 14... Qc8 {[%clk 0:02:00.5]} 15. dxc5 {[%clk 0:02:31.8]}
15... Rd8 {[%clk 0:02:00.1]} 16. Nd3 {[%clk 0:02:25.6]} 16... e6 {[%clk
0:01:40.4]} 17. Be5 {[%clk 0:02:03.2]} 17... f6 {[%clk 0:01:28.6]} 18. Bd6
{[%clk 0:01:47.8]} 18... b6 {[%clk 0:01:05.7]} 19. Nf4 {[%clk 0:01:30.3]} 19...
Bc4 {[%clk 0:01:06.1]} 20. b3 {[%clk 0:01:26.2]} 20... Bh6 {[%clk 0:00:51.1]}
21. Qg4 {[%clk 0:01:06.4]} 21... e5 {[%clk 0:00:51.7]} 22. Qxc8 {[%clk
0:01:01.7]} 22... Raxc8 {[%clk 0:00:53.6]} 23. Nxg6 {[%clk 0:00:53.3]} 23...
hxg6 {[%clk 0:00:49.3]} 24. bxc4 {[%clk 0:00:55.2]} 24... Kf7 {[%clk 0:00:41.7]}
25. Rad1 {[%clk 0:00:33.9]} 25... bxc5 {[%clk 0:00:34.1]} 26. Rd5 {[%clk
0:00:33.4]} 26... Rc6 {[%clk 0:00:27.6]} 27. Red1 {[%clk 0:00:28.1]} 27... Rdc8
{[%clk 0:00:27.4]} 28. g3 {[%clk 0:00:21.2]} 28... g5 {[%clk 0:00:28.2]} 29. h4
{[%clk 0:00:16.9]} 29... gxh4 {[%clk 0:00:29]} 30. gxh4 {[%clk 0:00:18.1]} 30...
Ke6 {[%clk 0:00:30.4]} 31. R1d3 {[%clk 0:00:10.1]} 31... Bf4 {[%clk 0:00:29.6]}
32. f3 {[%clk 0:00:09.6]} 32... e4 {[%clk 0:00:13]} 33. Bxf4 {[%clk 0:00:11.5]}
33... exd3 {[%clk 0:00:14.2]} 34. Rxd3 {[%clk 0:00:10.2]} 34... Ra6 {[%clk
0:00:15.3]} 35. Re3+ {[%clk 0:00:10.3]} 35... Kf5 {[%clk 0:00:16.3]} 36. Bg3
{[%clk 0:00:10.5]} 36... Rxa2 {[%clk 0:00:17.3]} 37. Re7 {[%clk 0:00:10.4]}
37... Rxc2 {[%clk 0:00:17.4]} 38. Rxa7 {[%clk 0:00:10.7]} 38... Rg8 {[%clk
0:00:18.8]} 0-1